[Event "Titled Tuesday Blitz February 21 Late 2023"]
[White "Li, Ruifeng"]
[Black "Ehlvest, Jaan"]
[WhiteFideId "2061074"]
[BlackFideId "4500016"]
[WhiteElo "2541"]
[BlackElo "2530"]
[Result "1/2-1/2"]
[Round "03"]
[TimeControl "180+2"]
[Date "2023.02.21"]
[WhiteClock "0:00:20"]
[BlackClock "0:01:13"]

1. b3 {[%clk 0:03:00]}  e5 {[%clk 0:02:57]} 2. Bb2 {[%clk 0:03:01]}  Nc6 {[%clk 0:02:57]} 3. Nf3 {[%clk 0:03:01]}  d6 {[%clk 0:02:48]} 4. e3 {[%clk 0:03:01]}  g6 {[%clk 0:02:47]} 5. d4 {[%clk 0:03:01]}  exd4 {[%clk 0:02:41]} 6. Nxd4 {[%clk 0:03:00]}  Nf6 {[%clk 0:02:41]} 7. Nxc6 {[%clk 0:02:42]}  bxc6 {[%clk 0:02:40]} 8. Be2 {[%clk 0:02:42]}  Bg7 {[%clk 0:02:40]} 9. O-O {[%clk 0:02:43]}  O-O {[%clk 0:02:40]} 10. c4 {[%clk 0:02:44]}  c5 {[%clk 0:02:35]} 11. Bf3 {[%clk 0:02:43]}  Rb8 {[%clk 0:02:34]} 12. Nc3 {[%clk 0:02:43]}  Nd7 {[%clk 0:02:32]} 13. Qd2 {[%clk 0:02:31]}  Ne5 {[%clk 0:02:29]} 14. Be2 {[%clk 0:02:30]}  Bb7 {[%clk 0:02:28]} 15. f4 {[%clk 0:02:22]}  Nd7 {[%clk 0:02:27]} 16. Bf3 {[%clk 0:02:22]}  Bxf3 {[%clk 0:02:25]} 17. Rxf3 {[%clk 0:02:23]}  Re8 {[%clk 0:02:21]} 18. Raf1 {[%clk 0:02:22]}  f5 {[%clk 0:02:16]} 19. Nd5 {[%clk 0:02:18]}  Nf6 {[%clk 0:02:07]} 20. Bxf6 {[%clk 0:02:00]}  Bxf6 {[%clk 0:02:07]} 21. g4 {[%clk 0:02:01]}  fxg4 {[%clk 0:01:58]} 22. Rg3 {[%clk 0:02:01]}  c6 {[%clk 0:01:58]} 23. Nxf6+ {[%clk 0:01:45]}  Qxf6 {[%clk 0:01:59]} 24. Rxg4 {[%clk 0:01:45]}  Kh8 {[%clk 0:01:58]} 25. Qd3 {[%clk 0:01:34]}  Rbd8 {[%clk 0:01:34]} 26. f5 {[%clk 0:01:31]}  gxf5 {[%clk 0:01:19]} 27. Rxf5 {[%clk 0:01:31]}  Rxe3 {[%clk 0:01:18]} 28. Rxf6 {[%clk 0:01:02]}  Rxd3 {[%clk 0:01:17]} 29. Rf7 {[%clk 0:01:02]}  a5 {[%clk 0:01:14]} 30. Rh4 {[%clk 0:01:00]}  Rg8+ {[%clk 0:01:13]} 31. Kf2 {[%clk 0:00:57]}  Rg7 {[%clk 0:01:13]} 32. Rf8+ {[%clk 0:00:43]}  Rg8 {[%clk 0:01:13]} 33. Rf7 {[%clk 0:00:30]}  Rg7 {[%clk 0:01:13]} 34. Rf8+ {[%clk 0:00:30]}  Rg8 {[%clk 0:01:13]} 35. Rf7 {[%clk 0:00:20]} 1/2-1/2


[Site "https://www.chess.com"]

[Event "Titled Tuesday Blitz February 21 Late 2023"]
[White "Berezin, Viktor"]
[Black "Vakhlamov, Igor L."]
[WhiteFideId "14107872"]
[BlackFideId "24126748"]
[WhiteElo "2307"]
[BlackElo "2413"]
[Result "0-1"]
[Round "03"]
[TimeControl "180+2"]
[Date "2023.02.21"]
[WhiteClock "0:00:04"]
[BlackClock "0:00:06"]

1. d4 {[%clk 0:03:00]}  d5 {[%clk 0:02:59]} 2. c4 {[%clk 0:03:00]}  e6 {[%clk 0:02:59]} 3. Nf3 {[%clk 0:02:59]}  Nf6 {[%clk 0:02:59]} 4. g3 {[%clk 0:02:58]}  c5 {[%clk 0:02:59]} 5. cxd5 {[%clk 0:02:58]}  cxd4 {[%clk 0:03:00]} 6. dxe6 {[%clk 0:02:51]}  Bxe6 {[%clk 0:03:00]} 7. Bg2 {[%clk 0:02:50]}  Bc5 {[%clk 0:03:00]} 8. O-O {[%clk 0:02:50]}  Nc6 {[%clk 0:03:00]} 9. a3 {[%clk 0:02:50]}  a5 {[%clk 0:03:01]} 10. Bg5 {[%clk 0:02:45]}  h6 {[%clk 0:02:50]} 11. Bxf6 {[%clk 0:02:45]}  Qxf6 {[%clk 0:02:51]} 12. Nbd2 {[%clk 0:02:45]}  Bb6 {[%clk 0:02:44]} 13. b4 {[%clk 0:02:37]}  axb4 {[%clk 0:02:40]} 14. axb4 {[%clk 0:02:38]}  O-O {[%clk 0:02:19]} 15. Rxa8 {[%clk 0:02:16]}  Rxa8 {[%clk 0:02:19]} 16. Nb3 {[%clk 0:02:15]}  Nxb4 {[%clk 0:02:01]} 17. Nfxd4 {[%clk 0:01:57]}  Rd8 {[%clk 0:01:59]} 18. e3 {[%clk 0:01:50]}  Bc4 {[%clk 0:01:30]} 19. Re1 {[%clk 0:01:48]}  Nd3 {[%clk 0:01:30]} 20. Re2 {[%clk 0:01:48]}  Bxb3 {[%clk 0:01:07]} 21. Qxd3 {[%clk 0:01:36]}  Be6 {[%clk 0:01:04]} 22. Rd2 {[%clk 0:01:15]}  Bf5 {[%clk 0:00:44]} 23. Qb5 {[%clk 0:01:08]}  Bxd4 {[%clk 0:00:38]} 24. Rxd4 {[%clk 0:01:01]}  Rxd4 {[%clk 0:00:38]} 25. exd4 {[%clk 0:01:02]}  b6 {[%clk 0:00:38]} 26. d5 {[%clk 0:00:49]}  Qa1+ {[%clk 0:00:31]} 27. Qf1 {[%clk 0:00:49]}  Qxf1+ {[%clk 0:00:31]} 28. Kxf1 {[%clk 0:00:43]}  Kf8 {[%clk 0:00:31]} 29. d6 {[%clk 0:00:37]}  Ke8 {[%clk 0:00:31]} 30. Bc6+ {[%clk 0:00:37]}  Bd7 {[%clk 0:00:32]} 31. Bd5 {[%clk 0:00:37]}  Bb5+ {[%clk 0:00:31]} 32. Ke1 {[%clk 0:00:36]}  Kd7 {[%clk 0:00:24]} 33. Bxf7 {[%clk 0:00:36]}  Kxd6 {[%clk 0:00:24]} 34. Kd2 {[%clk 0:00:36]}  Kc5 {[%clk 0:00:25]} 35. h4 {[%clk 0:00:34]}  Bc4 {[%clk 0:00:25]} 36. Bg6 {[%clk 0:00:25]}  Kd4 {[%clk 0:00:25]} 37. f4 {[%clk 0:00:23]}  b5 {[%clk 0:00:25]} 38. g4 {[%clk 0:00:22]}  b4 {[%clk 0:00:24]} 39. Bb1 {[%clk 0:00:21]}  b3 {[%clk 0:00:22]} 40. g5 {[%clk 0:00:20]}  hxg5 {[%clk 0:00:21]} 41. fxg5 {[%clk 0:00:20]}  Bf7 {[%clk 0:00:20]} 42. g6 {[%clk 0:00:19]}  Be6 {[%clk 0:00:18]} 43. h5 {[%clk 0:00:19]}  Ke5 {[%clk 0:00:17]} 44. Ke3 {[%clk 0:00:19]}  Kf6 {[%clk 0:00:10]} 45. Kf4 {[%clk 0:00:18]}  Bc4 {[%clk 0:00:10]} 46. Be4 {[%clk 0:00:12]}  Be2 {[%clk 0:00:09]} 47. h6 {[%clk 0:00:10]}  gxh6 {[%clk 0:00:10]} 48. Ke3 {[%clk 0:00:08]}  Bd1 {[%clk 0:00:08]} 49. Kd2 {[%clk 0:00:08]}  Bc2 {[%clk 0:00:05]} 50. Bd5 {[%clk 0:00:08]}  h5 {[%clk 0:00:04]} 51. Bf3 {[%clk 0:00:05]}  h4 {[%clk 0:00:04]} 52. Bg4 {[%clk 0:00:06]}  Kxg6 {[%clk 0:00:05]} 53. Kc3 {[%clk 0:00:05]}  Kg5 {[%clk 0:00:05]} 54. Be6 {[%clk 0:00:05]}  Kf4 {[%clk 0:00:06]} 55. Bd7 {[%clk 0:00:04]}  Kg3 {[%clk 0:00:06]} 0-1


[Site "https://www.chess.com"]

[Event "Titled Tuesday Blitz February 21 Late 2023"]
[White "Samsonkin, Artiom"]
[Black "Martinez Reyes, Pedro Ramon"]
[WhiteFideId "13503111"]
[BlackFideId "3901807"]
[WhiteElo "2420"]
[BlackElo "2376"]
[Result "1-0"]
[Round "03"]
[TimeControl "180+2"]
[Date "2023.02.21"]
[WhiteClock "0:00:35"]
[BlackClock "0:00:40"]

1. e4 {[%clk 0:03:00]}  e6 {[%clk 0:02:59]} 2. d4 {[%clk 0:03:00]}  d5 {[%clk 0:02:59]} 3. Nc3 {[%clk 0:02:59]}  Nf6 {[%clk 0:02:59]} 4. Bg5 {[%clk 0:02:59]}  h6 {[%clk 0:02:59]} 5. Bxf6 {[%clk 0:02:54]}  Qxf6 {[%clk 0:03:00]} 6. exd5 {[%clk 0:02:51]}  Bb4 {[%clk 0:02:59]} 7. Bc4 {[%clk 0:02:47]}  exd5 {[%clk 0:02:20]} 8. Bxd5 {[%clk 0:02:48]}  O-O {[%clk 0:02:20]} 9. Ne2 {[%clk 0:02:47]}  Rd8 {[%clk 0:02:20]} 10. O-O {[%clk 0:02:41]}  Nc6 {[%clk 0:02:18]} 11. Bxc6 {[%clk 0:02:31]}  Qxc6 {[%clk 0:02:09]} 12. a3 {[%clk 0:01:44]}  Be7 {[%clk 0:02:04]} 13. Qd2 {[%clk 0:01:35]}  Bf5 {[%clk 0:01:59]} 14. Rad1 {[%clk 0:01:33]}  Bf6 {[%clk 0:01:59]} 15. d5 {[%clk 0:01:11]}  Qb6 {[%clk 0:01:57]} 16. Nd4 {[%clk 0:01:07]}  Bg4 {[%clk 0:01:47]} 17. f3 {[%clk 0:01:03]}  Bh5 {[%clk 0:01:32]} 18. Kh1 {[%clk 0:01:01]}  Qxb2 {[%clk 0:01:24]} 19. Rb1 {[%clk 0:00:53]}  Qxa3 {[%clk 0:01:24]} 20. Ne4 {[%clk 0:00:51]}  Be5 {[%clk 0:01:09]} 21. c4 {[%clk 0:00:43]}  c6 {[%clk 0:00:57]} 22. f4 {[%clk 0:00:36]}  Bxd4 {[%clk 0:00:51]} 23. Qxd4 {[%clk 0:00:37]}  b5 {[%clk 0:00:38]} 24. d6 {[%clk 0:00:35]}  bxc4 {[%clk 0:00:36]} 25. Qxc4 {[%clk 0:00:30]}  Rxd6 {[%clk 0:00:30]} 26. Ra1 {[%clk 0:00:24]}  Qd3 {[%clk 0:00:29]} 27. Nxd6 {[%clk 0:00:24]}  Qxd6 {[%clk 0:00:30]} 28. f5 {[%clk 0:00:22]}  Qd5 {[%clk 0:00:29]} 29. Qf4 {[%clk 0:00:20]}  Be2 {[%clk 0:00:28]} 30. Rfe1 {[%clk 0:00:19]}  Bb5 {[%clk 0:00:28]} 31. f6 {[%clk 0:00:19]}  gxf6 {[%clk 0:00:27]} 32. Qxf6 {[%clk 0:00:19]}  Qg5 {[%clk 0:00:27]} 33. Qf2 {[%clk 0:00:18]}  a5 {[%clk 0:00:27]} 34. Re3 {[%clk 0:00:17]}  Kf8 {[%clk 0:00:21]} 35. Rg3 {[%clk 0:00:17]}  Qe5 {[%clk 0:00:21]} 36. Re1 {[%clk 0:00:16]}  Qd6 {[%clk 0:00:19]} 37. Rf3 {[%clk 0:00:17]}  Bc4 {[%clk 0:00:19]} 38. Rf4 {[%clk 0:00:17]}  Bd5 {[%clk 0:00:18]} 39. Rf6 {[%clk 0:00:16]}  Qb4 {[%clk 0:00:17]} 40. Rxh6 {[%clk 0:00:16]}  Re8 {[%clk 0:00:17]} 41. Rh8+ {[%clk 0:00:15]}  Kg7 {[%clk 0:00:16]} 42. Rhxe8 {[%clk 0:00:16]}  Qg4 {[%clk 0:00:15]} 43. Qg3 {[%clk 0:00:16]}  Qxg3 {[%clk 0:00:16]} 44. hxg3 {[%clk 0:00:17]}  a4 {[%clk 0:00:16]} 45. R8e5 {[%clk 0:00:18]}  Bb3 {[%clk 0:00:16]} 46. Rg5+ {[%clk 0:00:18]}  Kf6 {[%clk 0:00:16]} 47. Rc5 {[%clk 0:00:19]}  Bd5 {[%clk 0:00:16]} 48. Ra1 {[%clk 0:00:19]}  Bb3 {[%clk 0:00:15]} 49. Rxc6+ {[%clk 0:00:19]}  Ke5 {[%clk 0:00:16]} 50. Rb6 {[%clk 0:00:20]}  f5 {[%clk 0:00:16]} 51. Rxb3 {[%clk 0:00:19]}  axb3 {[%clk 0:00:16]} 52. Rb1 {[%clk 0:00:20]}  Kd4 {[%clk 0:00:16]} 53. Rxb3 {[%clk 0:00:20]}  f4 {[%clk 0:00:17]} 54. Rf3 {[%clk 0:00:21]}  Ke4 {[%clk 0:00:18]} 55. Rxf4+ {[%clk 0:00:22]}  Ke3 {[%clk 0:00:19]} 56. Kh2 {[%clk 0:00:22]}  Ke2 {[%clk 0:00:20]} 57. Kh3 {[%clk 0:00:23]}  Ke1 {[%clk 0:00:20]} 58. Kg4 {[%clk 0:00:24]}  Ke2 {[%clk 0:00:21]} 59. Kf5 {[%clk 0:00:25]}  Ke1 {[%clk 0:00:22]} 60. g4 {[%clk 0:00:26]}  Ke2 {[%clk 0:00:23]} 61. g5 {[%clk 0:00:26]}  Ke1 {[%clk 0:00:24]} 62. g6 {[%clk 0:00:27]}  Ke2 {[%clk 0:00:25]} 63. g7 {[%clk 0:00:28]}  Ke1 {[%clk 0:00:26]} 64. g8=Q {[%clk 0:00:29]}  Ke2 {[%clk 0:00:27]} 65. Qe6+ {[%clk 0:00:29]}  Kd1 {[%clk 0:00:27]} 66. Rd4+ {[%clk 0:00:29]}  Kc1 {[%clk 0:00:28]} 67. Rd7 {[%clk 0:00:30]}  Kb1 {[%clk 0:00:29]} 68. Qe8 {[%clk 0:00:31]}  Ka1 {[%clk 0:00:30]} 69. Qc8 {[%clk 0:00:31]}  Ka2 {[%clk 0:00:31]} 70. Rb7 {[%clk 0:00:32]}  Ka3 {[%clk 0:00:31]} 71. Qc3+ {[%clk 0:00:32]}  Ka2 {[%clk 0:00:32]} 72. Qc2+ {[%clk 0:00:32]}  Ka1 {[%clk 0:00:32]} 73. Qc1+ {[%clk 0:00:33]}  Ka2 {[%clk 0:00:33]} 74. Ra7+ {[%clk 0:00:33]}  Kb3 {[%clk 0:00:33]} 75. Qb1+ {[%clk 0:00:34]}  Kc4 {[%clk 0:00:34]} 76. Rc7+ {[%clk 0:00:34]}  Kd4 {[%clk 0:00:35]} 77. Qd1+ {[%clk 0:00:34]}  Ke3 {[%clk 0:00:36]} 78. Re7+ {[%clk 0:00:35]}  Kf2 {[%clk 0:00:36]} 79. Qf3+ {[%clk 0:00:35]}  Kg1 {[%clk 0:00:37]} 80. Re1+ {[%clk 0:00:35]}  Kh2 {[%clk 0:00:38]} 81. Qf4+ {[%clk 0:00:35]}  Kxg2 {[%clk 0:00:37]} 82. Re2+ {[%clk 0:00:36]}  Kg1 {[%clk 0:00:38]} 83. Qf2+ {[%clk 0:00:36]}  Kh1 {[%clk 0:00:38]} 84. Qh4+ {[%clk 0:00:36]}  Kg1 {[%clk 0:00:39]} 85. Qh2+ {[%clk 0:00:35]}  Kf1 {[%clk 0:00:39]} 86. Rf2+ {[%clk 0:00:36]}  Ke1 {[%clk 0:00:40]} 87. Qg1# {[%clk 0:00:35]} 1-0


[Site "https://www.chess.com"]

[Event "Titled Tuesday Blitz February 21 Late 2023"]
[White "Svane, Rasmus"]
[Black "Aggelis, Nikolaos"]
[WhiteFideId "4657101"]
[BlackFideId "4213220"]
[WhiteElo "2623"]
[BlackElo "2270"]
[Result "1/2-1/2"]
[Round "03"]
[TimeControl "180+2"]
[Date "2023.02.21"]
[WhiteClock "0:00:06"]
[BlackClock "0:00:35"]

1. Nf3 {[%clk 0:03:00]}  Nf6 {[%clk 0:02:57]} 2. g3 {[%clk 0:03:00]}  g6 {[%clk 0:02:57]} 3. Bg2 {[%clk 0:03:01]}  Bg7 {[%clk 0:02:58]} 4. O-O {[%clk 0:03:01]}  O-O {[%clk 0:02:59]} 5. d4 {[%clk 0:03:02]}  d5 {[%clk 0:02:59]} 6. c4 {[%clk 0:03:02]}  Nc6 {[%clk 0:02:59]} 7. cxd5 {[%clk 0:02:51]}  Nxd5 {[%clk 0:03:00]} 8. Nc3 {[%clk 0:02:51]}  e5 {[%clk 0:02:58]} 9. Bg5 {[%clk 0:02:42]}  f6 {[%clk 0:02:58]} 10. Bc1 {[%clk 0:02:41]}  Nxc3 {[%clk 0:02:58]} 11. bxc3 {[%clk 0:02:42]}  e4 {[%clk 0:02:58]} 12. Nd2 {[%clk 0:02:41]}  f5 {[%clk 0:02:58]} 13. Rb1 {[%clk 0:02:39]}  b6 {[%clk 0:02:53]} 14. f3 {[%clk 0:02:38]}  exf3 {[%clk 0:02:45]} 15. Nxf3 {[%clk 0:02:39]}  Bb7 {[%clk 0:02:39]} 16. Bf4 {[%clk 0:02:17]}  Na5 {[%clk 0:02:36]} 17. h4 {[%clk 0:01:33]}  Be4 {[%clk 0:02:35]} 18. Rc1 {[%clk 0:01:31]}  h6 {[%clk 0:02:32]} 19. e3 {[%clk 0:01:23]}  Nc4 {[%clk 0:02:27]} 20. Nd2 {[%clk 0:01:09]}  Bxg2 {[%clk 0:02:23]} 21. Kxg2 {[%clk 0:01:10]}  Qd5+ {[%clk 0:02:22]} 22. Qf3 {[%clk 0:01:10]}  Qxf3+ {[%clk 0:02:20]} 23. Nxf3 {[%clk 0:01:10]}  Rfe8 {[%clk 0:02:17]} 24. Rfe1 {[%clk 0:01:10]}  c5 {[%clk 0:02:08]} 25. Kf2 {[%clk 0:01:04]}  Rad8 {[%clk 0:02:03]} 26. a4 {[%clk 0:01:02]}  Nb2 {[%clk 0:02:02]} 27. Ke2 {[%clk 0:00:55]}  Nxa4 {[%clk 0:01:59]} 28. Kd3 {[%clk 0:00:52]}  b5 {[%clk 0:01:55]} 29. Rb1 {[%clk 0:00:45]}  a6 {[%clk 0:01:55]} 30. Kc2 {[%clk 0:00:46]}  cxd4 {[%clk 0:01:54]} 31. exd4 {[%clk 0:00:44]}  Rxe1 {[%clk 0:01:47]} 32. Rxe1 {[%clk 0:00:45]}  Rc8 {[%clk 0:01:47]} 33. Re3 {[%clk 0:00:34]}  b4 {[%clk 0:01:43]} 34. c4 {[%clk 0:00:33]}  Rxc4+ {[%clk 0:01:18]} 35. Kb3 {[%clk 0:00:33]}  Nb6 {[%clk 0:01:18]} 36. Ne5 {[%clk 0:00:21]}  Bxe5 {[%clk 0:01:14]} 37. Rxe5 {[%clk 0:00:22]}  Rxd4 {[%clk 0:01:11]} 38. Re6 {[%clk 0:00:20]}  Nd5 {[%clk 0:01:10]} 39. Rxg6+ {[%clk 0:00:21]}  Kf7 {[%clk 0:01:10]} 40. Rxa6 {[%clk 0:00:18]}  Nxf4 {[%clk 0:01:11]} 41. gxf4 {[%clk 0:00:19]}  h5 {[%clk 0:01:09]} 42. Rh6 {[%clk 0:00:16]}  Rxf4 {[%clk 0:01:08]} 43. Rxh5 {[%clk 0:00:16]}  Kg6 {[%clk 0:01:08]} 44. Rg5+ {[%clk 0:00:16]}  Kf6 {[%clk 0:01:08]} 45. Rh5 {[%clk 0:00:17]}  Kg6 {[%clk 0:01:08]} 46. Rg5+ {[%clk 0:00:16]}  Kf6 {[%clk 0:01:05]} 47. Rh5 {[%clk 0:00:17]}  Rg4 {[%clk 0:01:05]} 48. Rh8 {[%clk 0:00:15]}  Kg7 {[%clk 0:01:04]} 49. Rh5 {[%clk 0:00:16]}  Kg6 {[%clk 0:01:04]} 50. Rh8 {[%clk 0:00:16]}  f4 {[%clk 0:01:02]} 51. Rf8 {[%clk 0:00:07]}  Kh5 {[%clk 0:00:58]} 52. Rh8+ {[%clk 0:00:06]}  Kg6 {[%clk 0:00:58]} 53. Rf8 {[%clk 0:00:07]}  Rxh4 {[%clk 0:00:58]} 54. Kxb4 {[%clk 0:00:07]}  Kg5 {[%clk 0:00:58]} 55. Rg8+ {[%clk 0:00:06]}  Kf5 {[%clk 0:00:58]} 56. Kc3 {[%clk 0:00:07]}  Rh2 {[%clk 0:00:56]} 57. Kd3 {[%clk 0:00:07]}  Ra2 {[%clk 0:00:54]} 58. Rg7 {[%clk 0:00:07]}  Kf6 {[%clk 0:00:45]} 59. Rg4 {[%clk 0:00:06]}  Kf5 {[%clk 0:00:41]} 60. Rg8 {[%clk 0:00:06]}  Rh2 {[%clk 0:00:38]} 61. Rg7 {[%clk 0:00:06]}  Rh3+ {[%clk 0:00:34]} 62. Ke2 {[%clk 0:00:06]}  Rg3 {[%clk 0:00:35]} 63. Rxg3 {[%clk 0:00:05]}  fxg3 {[%clk 0:00:35]} 64. Kf3 {[%clk 0:00:06]}  g2 {[%clk 0:00:35]} 65. Kxg2 {[%clk 0:00:06]} 1/2-1/2


[Site "https://www.chess.com"]

[Event "Titled Tuesday Blitz February 21 Late 2023"]
[White "Rustemov, Alexander"]
[Black "Deng, Henry"]
[WhiteFideId "4119002"]
[BlackFideId "30965454"]
[WhiteElo "2525"]
[BlackElo "2168"]
[Result "1-0"]
[Round "03"]
[TimeControl "180+2"]
[Date "2023.02.21"]
[WhiteClock "0:01:09"]
[BlackClock "0:01:05"]

1. d4 {[%clk 0:03:00]}  d5 {[%clk 0:03:00]} 2. c4 {[%clk 0:03:00]}  c6 {[%clk 0:03:00]} 3. Nc3 {[%clk 0:03:00]}  Nf6 {[%clk 0:03:00]} 4. e3 {[%clk 0:03:01]}  Bf5 {[%clk 0:02:59]} 5. cxd5 {[%clk 0:03:00]}  cxd5 {[%clk 0:02:58]} 6. Qb3 {[%clk 0:03:00]}  Bc8 {[%clk 0:02:47]} 7. Nf3 {[%clk 0:03:00]}  Nc6 {[%clk 0:02:47]} 8. Ne5 {[%clk 0:02:58]}  e6 {[%clk 0:02:43]} 9. f4 {[%clk 0:02:57]}  Qc7 {[%clk 0:02:37]} 10. Bd3 {[%clk 0:02:56]}  Bb4 {[%clk 0:02:37]} 11. Bd2 {[%clk 0:02:54]}  O-O {[%clk 0:02:36]} 12. O-O {[%clk 0:02:53]}  a6 {[%clk 0:02:29]} 13. Rac1 {[%clk 0:02:52]}  Bd6 {[%clk 0:02:28]} 14. Be1 {[%clk 0:02:46]}  Ne8 {[%clk 0:02:21]} 15. Na4 {[%clk 0:02:40]}  Rb8 {[%clk 0:02:17]} 16. Nxc6 {[%clk 0:02:34]}  bxc6 {[%clk 0:02:17]} 17. Qc2 {[%clk 0:02:34]}  Bb7 {[%clk 0:02:12]} 18. Nc5 {[%clk 0:02:31]}  a5 {[%clk 0:02:09]} 19. b3 {[%clk 0:02:21]}  Bxc5 {[%clk 0:02:05]} 20. Qxc5 {[%clk 0:02:21]}  Ra8 {[%clk 0:02:06]} 21. Bg3 {[%clk 0:02:06]}  f5 {[%clk 0:02:05]} 22. Rc2 {[%clk 0:01:57]}  Nd6 {[%clk 0:02:00]} 23. Rfc1 {[%clk 0:01:55]}  Ba6 {[%clk 0:01:57]} 24. Qxc6 {[%clk 0:01:49]}  Qxc6 {[%clk 0:01:55]} 25. Rxc6 {[%clk 0:01:50]}  Bxd3 {[%clk 0:01:55]} 26. Rxd6 {[%clk 0:01:50]}  Rfe8 {[%clk 0:01:53]} 27. Rc3 {[%clk 0:01:42]}  Bb1 {[%clk 0:01:48]} 28. a3 {[%clk 0:01:39]}  Kf7 {[%clk 0:01:40]} 29. Be1 {[%clk 0:01:37]}  Ra7 {[%clk 0:01:40]} 30. Rc5 {[%clk 0:01:32]}  Ba2 {[%clk 0:01:38]} 31. b4 {[%clk 0:01:32]}  axb4 {[%clk 0:01:38]} 32. Bxb4 {[%clk 0:01:32]}  Bc4 {[%clk 0:01:37]} 33. h3 {[%clk 0:01:30]}  Rb8 {[%clk 0:01:34]} 34. Kf2 {[%clk 0:01:30]}  g6 {[%clk 0:01:32]} 35. g4 {[%clk 0:01:30]}  Rbb7 {[%clk 0:01:30]} 36. Kg3 {[%clk 0:01:30]}  Rb8 {[%clk 0:01:31]} 37. Rcc6 {[%clk 0:01:30]}  Re8 {[%clk 0:01:30]} 38. Kh4 {[%clk 0:01:29]}  Bb5 {[%clk 0:01:29]} 39. Rb6 {[%clk 0:01:28]}  Bf1 {[%clk 0:01:27]} 40. Bc5 {[%clk 0:01:28]}  Rc7 {[%clk 0:01:26]} 41. a4 {[%clk 0:01:17]}  Ra7 {[%clk 0:01:26]} 42. Rxe6 {[%clk 0:01:14]}  Rxe6 {[%clk 0:01:22]} 43. Rxe6 {[%clk 0:01:15]}  Kxe6 {[%clk 0:01:14]} 44. Bxa7 {[%clk 0:01:14]}  Ba6 {[%clk 0:01:10]} 45. a5 {[%clk 0:01:14]}  Bf1 {[%clk 0:01:09]} 46. Bc5 {[%clk 0:01:13]}  Ba6 {[%clk 0:01:10]} 47. Bf8 {[%clk 0:01:13]}  Kd7 {[%clk 0:01:09]} 48. Kg5 {[%clk 0:01:11]}  Bf1 {[%clk 0:01:07]} 49. gxf5 {[%clk 0:01:09]}  gxf5 {[%clk 0:01:07]} 50. h4 {[%clk 0:01:10]}  Bd3 {[%clk 0:01:06]} 51. Kh6 {[%clk 0:01:09]}  Kc7 {[%clk 0:01:05]} 52. Kxh7 {[%clk 0:01:09]} 1-0


[Site "https://www.chess.com"]

[Event "Titled Tuesday Blitz February 21 Late 2023"]
[White "Holt, Conrad"]
[Black "Sonnenschein, Philipp"]
[WhiteFideId "2034387"]
[BlackFideId "16250877"]
[WhiteElo "2540"]
[BlackElo "2224"]
[Result "1-0"]
[Round "03"]
[TimeControl "180+2"]
[Date "2023.02.21"]
[WhiteClock "0:00:08"]
[BlackClock "0:00:11"]

1. d4 {[%clk 0:03:00]}  Nf6 {[%clk 0:02:59]} 2. c4 {[%clk 0:03:01]}  g6 {[%clk 0:02:59]} 3. Nc3 {[%clk 0:03:01]}  d5 {[%clk 0:02:59]} 4. e3 {[%clk 0:03:00]}  Bg7 {[%clk 0:02:59]} 5. Qb3 {[%clk 0:03:01]}  dxc4 {[%clk 0:02:55]} 6. Bxc4 {[%clk 0:03:02]}  O-O {[%clk 0:02:54]} 7. Nf3 {[%clk 0:03:02]}  c5 {[%clk 0:02:54]} 8. O-O {[%clk 0:02:57]}  cxd4 {[%clk 0:02:51]} 9. Nxd4 {[%clk 0:02:58]}  e5 {[%clk 0:02:48]} 10. Ndb5 {[%clk 0:02:51]}  Nc6 {[%clk 0:02:34]} 11. Qa3 {[%clk 0:02:41]}  Qa5 {[%clk 0:02:24]} 12. Qxa5 {[%clk 0:02:10]}  Nxa5 {[%clk 0:02:25]} 13. Be2 {[%clk 0:02:11]}  Rd8 {[%clk 0:02:18]} 14. e4 {[%clk 0:02:01]}  a6 {[%clk 0:02:07]} 15. Nc7 {[%clk 0:02:00]}  Rb8 {[%clk 0:02:05]} 16. Be3 {[%clk 0:02:00]}  Nc6 {[%clk 0:01:47]} 17. Bb6 {[%clk 0:01:45]}  Nd7 {[%clk 0:01:34]} 18. Be3 {[%clk 0:01:40]}  Bf8 {[%clk 0:01:27]} 19. Rfd1 {[%clk 0:01:38]}  Bc5 {[%clk 0:01:22]} 20. Bg5 {[%clk 0:01:30]}  f6 {[%clk 0:01:21]} 21. Bc4+ {[%clk 0:01:28]}  Kh8 {[%clk 0:01:16]} 22. Be3 {[%clk 0:01:02]}  Bxe3 {[%clk 0:01:16]} 23. fxe3 {[%clk 0:01:02]}  Nb6 {[%clk 0:01:12]} 24. Bd5 {[%clk 0:00:56]}  Bg4 {[%clk 0:01:10]} 25. Rf1 {[%clk 0:00:52]}  Rd7 {[%clk 0:00:49]} 26. Nxa6 {[%clk 0:00:47]}  bxa6 {[%clk 0:00:39]} 27. Bxc6 {[%clk 0:00:47]}  Rd2 {[%clk 0:00:39]} 28. h3 {[%clk 0:00:42]}  Nc4 {[%clk 0:00:33]} 29. b3 {[%clk 0:00:17]}  Nxe3 {[%clk 0:00:28]} 30. Rf2 {[%clk 0:00:13]}  Rd3 {[%clk 0:00:23]} 31. Nd5 {[%clk 0:00:10]}  Nxd5 {[%clk 0:00:21]} 32. Bxd5 {[%clk 0:00:10]}  Bd7 {[%clk 0:00:20]} 33. Rxf6 {[%clk 0:00:10]}  Rc8 {[%clk 0:00:19]} 34. Raf1 {[%clk 0:00:08]}  Bb5 {[%clk 0:00:18]} 35. R1f2 {[%clk 0:00:06]}  Rc1+ {[%clk 0:00:17]} 36. Kh2 {[%clk 0:00:06]}  Kg7 {[%clk 0:00:17]} 37. a4 {[%clk 0:00:05]}  Be8 {[%clk 0:00:16]} 38. Re6 {[%clk 0:00:03]}  Rdd1 {[%clk 0:00:09]} 39. Rxe8 {[%clk 0:00:03]}  h5 {[%clk 0:00:10]} 40. Kg3 {[%clk 0:00:03]}  g5 {[%clk 0:00:09]} 41. h4 {[%clk 0:00:03]}  Rd3+ {[%clk 0:00:07]} 42. Rf3 {[%clk 0:00:03]}  gxh4+ {[%clk 0:00:06]} 43. Kh2 {[%clk 0:00:02]}  Rdd1 {[%clk 0:00:06]} 44. Re7+ {[%clk 0:00:03]}  Kg6 {[%clk 0:00:06]} 45. Bf7+ {[%clk 0:00:02]}  Kh6 {[%clk 0:00:06]} 46. Re6+ {[%clk 0:00:02]}  Kg7 {[%clk 0:00:06]} 47. Rg6+ {[%clk 0:00:01]}  Kh7 {[%clk 0:00:07]} 48. g4 {[%clk 0:00:01]}  Rh1+ {[%clk 0:00:07]} 49. Kg2 {[%clk 0:00:02]}  Rcg1+ {[%clk 0:00:07]} 50. Kf2 {[%clk 0:00:02]}  Rf1+ {[%clk 0:00:08]} 51. Ke2 {[%clk 0:00:03]}  Rxf3 {[%clk 0:00:08]} 52. Kxf3 {[%clk 0:00:03]}  Rf1+ {[%clk 0:00:08]} 53. Kg2 {[%clk 0:00:03]}  Rxf7 {[%clk 0:00:09]} 54. gxh5 {[%clk 0:00:04]}  Rf4 {[%clk 0:00:10]} 55. Rxa6 {[%clk 0:00:04]}  Rxe4 {[%clk 0:00:10]} 56. a5 {[%clk 0:00:05]}  Rb4 {[%clk 0:00:09]} 57. Rb6 {[%clk 0:00:05]}  Rd4 {[%clk 0:00:10]} 58. a6 {[%clk 0:00:06]}  Rd8 {[%clk 0:00:10]} 59. a7 {[%clk 0:00:06]}  Ra8 {[%clk 0:00:10]} 60. Ra6 {[%clk 0:00:06]}  e4 {[%clk 0:00:09]} 61. Kf2 {[%clk 0:00:06]}  h3 {[%clk 0:00:09]} 62. Kg3 {[%clk 0:00:05]}  e3 {[%clk 0:00:10]} 63. Kxh3 {[%clk 0:00:05]}  e2 {[%clk 0:00:10]} 64. Re6 {[%clk 0:00:06]}  Rxa7 {[%clk 0:00:10]} 65. Rxe2 {[%clk 0:00:06]}  Rb7 {[%clk 0:00:10]} 66. Rb2 {[%clk 0:00:06]}  Kh6 {[%clk 0:00:10]} 67. Kg4 {[%clk 0:00:06]}  Rb4+ {[%clk 0:00:10]} 68. Kf5 {[%clk 0:00:07]}  Kxh5 {[%clk 0:00:11]} 69. Rh2+ {[%clk 0:00:07]}  Rh4 {[%clk 0:00:10]} 70. Rxh4+ {[%clk 0:00:07]}  Kxh4 {[%clk 0:00:11]} 71. b4 {[%clk 0:00:08]} 1-0


[Site "https://www.chess.com"]